bitfinex/quotes_BTCUSD_20250421
["timestamp","ask_amount","ask_price","bid_price","bid_amount"]
[1745261574150,0.37954419,86831.0,86830.0,0.00304666]
[1745261583349,0.14921171,86831.0,86830.0,0.00304666]
[1745261583557,0.14921171,86831.0,86830.0,0.28128179]
[1745261584198,0.03545577,86831.0,86830.0,0.28128179]
[1745261584699,0.00200001,86831.0,86830.0,0.28128179]
[1745261585924,0.00200001,86831.0,86830.0,0.32928179]
[1745261590502,0.03543851,86831.0,86830.0,0.32928179]
[1745261591507,0.04619223,86831.0,86830.0,0.32928179]
[1745261593442,0.03543851,86831.0,86830.0,0.32928179]
[1745261594465,0.04619223,86831.0,86830.0,0.32928179]
[1745261595083,0.03543851,86831.0,86830.0,0.32928179]
[1745261596017,0.00200001,86831.0,86830.0,0.32928179]
[1745261596214,0.03543241,86831.0,86830.0,0.32928179]
[1745261596417,0.00200001,86831.0,86830.0,0.32928179]
[1745261596673,0.03543241,86831.0,86830.0,0.32928179]
[1745261598146,0.03643242,86831.0,86830.0,0.32928179]
[1745261599771,0.00300002,86831.0,86830.0,0.32928179]
[1745261602691,0.00200002,86831.0,86830.0,0.32828179]
[1745261602897,0.00200002,86831.0,86830.0,0.32628179]
[1745261603278,0.00200002,86831.0,86830.0,0.33995139]
[1745261603481,0.00300002,86831.0,86830.0,0.34195139]
[1745261610823,0.001,86831.0,86830.0,0.34195139]
[1745261611256,0.001,86831.0,86830.0,0.45570733]
[1745261611600,1e-08,86831.0,86830.0,0.84570733]
[1745261611807,0.01075372,86851.0,86830.0,0.84370733]
[1745261612072,0.00100001,86851.0,86850.0,0.27758209]
[1745261614400,0.00100001,86851.0,86850.0,0.27858209]
[1745261614605,0.00200001,86851.0,86850.0,0.27858209]
[1745261615031,0.00100001,86851.0,86850.0,0.27858209]
[1745261615194,0.00100001,86851.0,86850.0,0.27958209]
[1745261622195,0.0008442,86867.0,86860.0,0.23025558]
[1745261622440,0.00184421,86861.0,86860.0,0.23025558]
[1745261623474,0.00184421,86861.0,86860.0,0.23039231]
[1745261623923,0.00284421,86861.0,86860.0,0.23039231]
[1745261637209,0.00284421,86861.0,86860.0,0.2326947]
[1745261637548,0.00284421,86861.0,86860.0,0.2813947]
[1745261637754,0.00284421,86861.0,86860.0,0.27909231]
[1745261639165,0.00184421,86861.0,86860.0,0.27909231]
[1745261639593,0.00184421,86861.0,86860.0,0.28009231]
[1745261641888,0.00184421,86861.0,86860.0,0.32799231]
[1745261642064,1e-08,86861.0,86860.0,0.32799231]
[1745261643162,1e-08,86861.0,86860.0,0.32699231]
[1745261643332,0.00100001,86861.0,86860.0,0.32899231]
[1745261644802,0.00100001,86861.0,86860.0,0.32999231]
[1745261650532,0.00100001,86861.0,86860.0,0.00313673]
[1745261650854,0.27697124,86861.0,86860.0,0.00313673]
[1745261651055,0.23125294,86861.0,86860.0,0.00313673]
[1745261651239,0.2652625,86861.0,86860.0,0.00313673]
[1745261651634,0.2642625,86861.0,86860.0,0.00113673]
[1745261651839,0.37801844,86861.0,86860.0,0.00213673]
[1745261652041,0.37801844,86861.0,86860.0,0.00113673]
[1745261652042,0.45701844,86861.0,86860.0,0.00113673]
[1745261652249,0.79701844,86861.0,86860.0,0.00113673]
[1745261652454,0.80873952,86861.0,86860.0,0.00013673]
[1745261652769,0.80873952,86861.0,86860.0,0.00113673]
[1745261652975,0.80973952,86861.0,86860.0,0.00113673]
[1745261653318,0.80973952,86861.0,86860.0,0.00013673]
[1745261653523,0.82148551,86861.0,86860.0,0.00013673]
[1745261655483,0.82997059,86861.0,86860.0,0.00013673]
[1745261666580,0.82997059,86861.0,86860.0,0.23039231]
[1745261666581,0.1915115,86861.0,86860.0,0.23039231]
[1745261666748,0.04775556,86861.0,86860.0,0.23039231]
[1745261666956,0.03700957,86861.0,86860.0,0.23039231]
[1745261667565,0.00300001,86861.0,86860.0,0.23039231]
[1745261668102,0.11475595,86861.0,86860.0,0.00013673]
[1745261668291,0.1429353,86861.0,86860.0,0.00013673]
[1745261668455,0.1429353,86861.0,86860.0,0.23039231]
[1745261668855,0.1439353,86861.0,86860.0,0.23039231]
[1745261669465,0.1449353,86861.0,86860.0,0.23039231]
[1745261669665,0.03117936,86861.0,86860.0,0.23039231]
[1745261670062,0.00300001,86861.0,86860.0,0.23039231]
[1745261670262,0.00200001,86861.0,86860.0,0.23039231]
[1745261670463,0.00300001,86861.0,86860.0,0.23039231]
[1745261670986,0.002,86861.0,86860.0,0.23039231]
[1745261673544,0.11575594,86861.0,86860.0,0.00013673]
[1745261673756,0.39360887,86861.0,86860.0,0.00013673]
[1745261674059,0.43179473,86861.0,86860.0,0.00013673]
[1745261675617,0.1539418,86861.0,86860.0,0.00013673]
[1745261675791,0.1539418,86861.0,86860.0,0.23039231]
[1745261676110,0.1439418,86861.0,86860.0,0.23039231]
[1745261682079,0.15469302,86861.0,86860.0,0.23039231]
[1745261684108,0.15469302,86861.0,86860.0,0.00013673]
[1745261685989,0.15469302,86861.0,86860.0,0.23039231]
[1745261687075,0.15469302,86861.0,86860.0,0.00013673]
[1745261687279,0.1439418,86861.0,86860.0,0.00013673]
[1745261687655,0.1439418,86861.0,86860.0,0.23039231]
[1745261687862,0.1439418,86861.0,86860.0,0.00013673]
[1745261688026,0.15469302,86861.0,86860.0,0.00013673]
[1745261689014,0.38494595,86861.0,86860.0,0.00013673]
[1745261689730,0.15469302,86861.0,86860.0,0.00013673]
[1745261690030,0.38494595,86861.0,86860.0,0.00013673]
[1745261690438,0.15469302,86861.0,86860.0,0.00013673]
[1745261690634,0.38494595,86861.0,86860.0,0.00013673]
[1745261693040,0.39494595,86861.0,86860.0,0.00013673]
[1745261693187,0.49014595,86861.0,86860.0,0.00013673]
[1745261693941,0.83014595,86861.0,86860.0,0.00013673]
[1745261694354,0.82914595,86861.0,86860.0,0.00013673]
[1745261694554,0.83014595,86861.0,86860.0,0.00013673]
[1745261695435,0.82914595,86861.0,86860.0,0.00013673]
[1745261695643,0.83114595,86861.0,86860.0,0.00113673]
[1745261702465,0.85269403,86861.0,86860.0,0.00113673]
[1745261703454,1.26859403,86861.0,86860.0,0.00113673]
[1745261707618,1.22299403,86861.0,86860.0,0.00113673]
[1745261710552,1.17339403,86861.0,86860.0,0.00113673]
[1745261713373,1.17339403,86861.0,86844.0,0.0115149]
[1745261713374,0.01151702,86828.0,86825.0,0.0004219]
[1745261713573,0.23034574,86826.0,86825.0,0.00046856]
[1745261713781,0.50564976,86826.0,86825.0,0.00046856]
[1745261714012,0.53373557,86826.0,86825.0,0.00046856]
[1745261714271,0.55609826,86826.0,86825.0,0.00046856]
[1745261714441,0.55609826,86826.0,86825.0,0.00446856]
[1745261714666,0.54306272,86826.0,86825.0,0.00446856]
[1745261714946,0.54306272,86826.0,86825.0,0.00046856]
[1745261715303,0.88306272,86826.0,86825.0,0.00046856]
[1745261715505,0.9046108,86826.0,86825.0,0.00046856]
[1745261715719,0.9056108,86826.0,86825.0,0.00046856]
[1745261718058,1.3215108,86826.0,86825.0,0.00046856]
[1745261720095,1.06880237,86826.0,86825.0,0.00046856]
[1745261720294,0.72880237,86826.0,86825.0,0.00046856]
[1745261720522,0.70725429,86826.0,86825.0,0.00046856]
[1745261721305,0.93760003,86826.0,86825.0,0.00046856]
[1745261721509,0.58498581,86826.0,86825.0,0.27811696]
[1745261721766,0.44498581,86826.0,86825.0,0.27811696]
[1745261721879,0.44498581,86826.0,86825.0,0.27911696]
[1745261722080,0.02908581,86826.0,86825.0,0.27911696]
[1745261722341,0.001,86826.0,86825.0,0.27911696]
[1745261723155,0.01151543,86840.0,86834.0,0.01151622]
[1745261723349,0.35558185,86840.0,86836.0,0.23031743]
[1745261723563,0.02785907,86839.0,86837.0,0.23031655]
[1745261724823,0.02785907,86839.0,86838.0,0.23031391]
[1745261725031,0.02785907,86839.0,86837.0,0.23131655]
[1745261726197,0.02785907,86839.0,86837.0,0.23031655]
[1745261726578,0.23031391,86838.0,86836.0,0.01151596]
[1745261726795,0.03937463,86839.0,86836.0,0.23031834]
[1745261727032,0.02788069,86837.0,86836.0,0.23031834]
[1745261727241,0.001,86839.0,86838.0,0.23031391]
[1745261727444,0.11375594,86840.0,86838.0,0.23031391]
[1745261727654,0.34406481,86840.0,86838.0,0.23031391]
[1745261728240,0.11375594,86840.0,86838.0,0.23031391]
[1745261728621,0.34406462,86840.0,86837.0,0.01151582]
[1745261729187,0.34406462,86840.0,86837.0,0.24183018]
[1745261729388,0.02888166,86839.0,86837.0,0.24183018]
[1745261729809,0.02788166,86839.0,86838.0,0.23031391]
[1745261730263,0.02788166,86839.0,86837.0,0.24283018]
[1745261730662,0.02788166,86839.0,86838.0,0.23031391]
[1745261731090,0.02888166,86839.0,86838.0,0.23031391]
[1745261731670,0.02888166,86839.0,86838.0,0.27541391]
[1745261731869,0.001,86839.0,86838.0,0.27541391]
[1745261732073,0.10668,86842.0,86841.0,0.23030596]
[1745261732284,0.10668,86842.0,86838.0,0.0451]
[1745261732285,0.01151529,86841.0,86838.0,0.0451]
[1745261732498,0.25829539,86840.0,86838.0,0.0451]
[1745261733258,0.01151635,86833.0,86829.0,0.0451]
[1745261733476,0.01151662,86831.0,86824.0,0.01151755]
[1745261733642,0.01151688,86829.0,86825.0,0.23081512]
[1745261733857,0.35561592,86828.0,86825.0,0.24233254]
[1745261734063,0.23034574,86826.0,86825.0,0.00046856]
[1745261734218,0.37205759,86826.0,86825.0,0.00046856]
[1745261734624,0.14171185,86826.0,86825.0,0.00046856]
[1745261734844,0.14171185,86826.0,86825.0,0.00246856]
[1745261735251,0.14171185,86826.0,86825.0,0.00046856]
[1745261735656,0.14171185,86826.0,86825.0,0.23081696]
[1745261736220,0.02795591,86826.0,86825.0,0.23281696]
[1745261736552,0.01151702,86828.0,86826.0,0.23034515]
[1745261736756,0.11375594,86828.0,86826.0,0.23034515]
[1745261737367,0.11375594,86828.0,86827.0,0.23034309]
[1745261737574,0.11375594,86828.0,86826.0,0.23034572]
[1745261737780,0.11475594,86828.0,86827.0,0.23034309]
[1745261737978,0.11475594,86828.0,86826.0,0.23234572]
[1745261738415,0.11475594,86828.0,86826.0,0.23434572]
[1745261739087,0.11375594,86828.0,86826.0,0.23234572]
[1745261739289,0.11475594,86828.0,86827.0,0.002]
[1745261739712,0.11375594,86828.0,86826.0,0.23034572]
[1745261739869,0.11375594,86828.0,86827.0,0.001]
[1745261740074,0.11475594,86828.0,86827.0,0.001]
[1745261740334,0.11475594,86828.0,86827.0,0.23134309]
[1745261740734,0.11375594,86828.0,86827.0,0.23134309]
[1745261741035,0.11475594,86828.0,86827.0,0.23334309]
[1745261741239,0.001,86828.0,86827.0,0.23334309]
[1745261741445,0.001,86828.0,86827.0,0.28244632]
[1745261741620,0.001,86828.0,86827.0,0.28014309]
[1745261742425,0.001,86828.0,86827.0,0.32834309]
[1745261742665,0.001,86828.0,86827.0,0.33977737]
[1745261742880,0.001,86828.0,86827.0,0.32834309]
[1745261751002,1e-08,86828.0,86827.0,0.32834309]
[1745261751175,1e-08,86828.0,86827.0,0.44209903]
[1745261751787,0.01073658,86842.0,86841.0,0.23030596]
[1745261751986,0.2525133,86857.0,86854.0,0.23026993]
[1745261752152,0.11375594,86856.0,86854.0,0.23027149]
[1745261752351,0.15323323,86856.0,86852.0,0.23027466]
[1745261752691,0.15323323,86856.0,86854.0,0.23027126]
[1745261753257,0.15323323,86856.0,86854.0,0.23131792]
[1745261753659,0.15423323,86856.0,86854.0,0.23131792]
[1745261754321,0.38449997,86856.0,86854.0,0.00104666]
[1745261754819,0.38349997,86856.0,86854.0,0.00104666]
[1745261755218,0.38349997,86856.0,86854.0,0.00204666]
[1745261755711,0.23026883,86855.0,86854.0,0.00204666]
[1745261755911,0.37198721,86855.0,86854.0,0.00204666]
[1745261756112,0.51198721,86855.0,86854.0,0.00204666]
[1745261756584,0.51198721,86855.0,86854.0,4.666e-05]
[1745261756783,0.51198721,86855.0,86854.0,0.00104666]
[1745261758718,0.51198721,86855.0,86854.0,4.666e-05]
[1745261758871,0.51298721,86855.0,86854.0,4.666e-05]
[1745261765210,0.85298721,86855.0,86854.0,4.666e-05]
[1745261765424,0.86372379,86855.0,86854.0,4.666e-05]
[1745261765995,0.86272379,86855.0,86854.0,4.666e-05]
[1745261766212,0.88423603,86855.0,86854.0,4.666e-05]
[1745261766433,0.88623603,86855.0,86854.0,4.666e-05]
[1745261767898,1.30213603,86855.0,86854.0,4.666e-05]
[1745261769492,1.30313603,86855.0,86854.0,4.666e-05]
[1745261771093,1.30213603,86855.0,86854.0,4.666e-05]
[1745261771394,1.30413603,86855.0,86854.0,0.00104666]
[1745261771909,1.30113603,86855.0,86854.0,4.666e-05]
[1745261772109,1.30213603,86855.0,86854.0,0.00104666]
[1745261772319,1.30313603,86855.0,86854.0,0.00104666]
[1745261772520,1.30213603,86855.0,86854.0,0.00104666]
[1745261772716,1.30313603,86855.0,86854.0,0.00104666]
[1745261777304,1.29460824,86855.0,86854.0,0.00104666]
[1745261780785,1.40116824,86855.0,86854.0,0.00104666]
[1745261781323,1.379656,86855.0,86854.0,0.00104666]
[1745261782974,1.14938717,86855.0,86854.0,0.23131815]
[1745261783179,0.17317123,86855.0,86854.0,0.27941815]
[1745261783379,0.03317123,86855.0,86854.0,0.27941815]
[1745261783589,0.003,86855.0,86854.0,0.27941815]
[1745261783994,0.001,86855.0,86854.0,0.27841815]
[1745261784471,0.001,86855.0,86854.0,0.32571815]
[1745261785129,0.002,86855.0,86854.0,0.32671815]
[1745261785739,0.002,86855.0,86854.0,0.32771815]
[1745261786588,0.23226883,86855.0,86854.0,0.09744666]
[1745261786783,0.11575594,86855.0,86854.0,0.00204666]
[1745261786990,0.13529996,86855.0,86854.0,0.00204666]
[1745261787508,0.36556879,86855.0,86854.0,0.00204666]
[1745261788287,0.37556879,86855.0,86854.0,0.00204666]
[1745261788967,0.38632926,86855.0,86854.0,0.00204666]
[1745261790865,0.38532926,86855.0,86854.0,0.00204666]
[1745261792444,0.72532926,86855.0,86854.0,0.00204666]
[1745261792644,0.77502926,86855.0,86854.0,0.00204666]
[1745261792852,0.77602926,86855.0,86854.0,0.00204666]
[1745261793651,0.77602926,86855.0,86854.0,0.00104666]
[1745261793970,0.77702926,86855.0,86854.0,4.666e-05]
[1745261794168,0.77702926,86855.0,86854.0,0.00104666]
[1745261794410,0.72932926,86855.0,86854.0,0.00104666]
[1745261800670,0.13829996,86855.0,86854.0,0.23131815]
[1745261800924,0.13829996,86855.0,86854.0,0.00104666]
[1745261801722,0.36856879,86855.0,86854.0,0.00104666]
[1745261802108,0.13829996,86855.0,86854.0,0.00104666]
[1745261802339,0.13729996,86855.0,86854.0,0.23131815]
[1745261803051,0.13729996,86855.0,86854.0,0.00104666]
[1745261804341,0.36756879,86855.0,86854.0,0.00104666]
[1745261804952,0.13729996,86855.0,86854.0,0.00104666]
[1745261805510,0.36756879,86855.0,86854.0,0.00104666]
[1745261805731,0.13729996,86855.0,86854.0,0.00104666]
[1745261805911,0.13729996,86855.0,86854.0,0.23131815]
[1745261806132,0.13729996,86855.0,86854.0,0.00104666]
[1745261806738,0.36756879,86855.0,86854.0,0.00104666]
[1745261806934,0.13729996,86855.0,86854.0,0.23131815]
[1745261807151,0.13729996,86855.0,86854.0,0.00104666]
[1745261807395,0.36756879,86855.0,86854.0,0.00104666]
[1745261807599,0.13729996,86855.0,86854.0,0.00104666]
[1745261807901,0.13729996,86855.0,86854.0,0.23131815]
[1745261808053,0.13729996,86855.0,86854.0,0.00104666]
[1745261810274,0.13729996,86855.0,86854.0,0.23131815]
[1745261810476,0.13729996,86855.0,86854.0,0.00104666]
[1745261810857,0.36756879,86855.0,86854.0,0.00104666]
[1745261814967,0.13729996,86855.0,86854.0,0.00104666]
[1745261815604,0.36756879,86855.0,86854.0,0.00104666]
[1745261816411,0.37832926,86855.0,86854.0,0.00104666]
[1745261817788,0.14806043,86855.0,86854.0,0.00104666]
[1745261819874,0.14806043,86855.0,86854.0,0.23131815]
[1745261820076,0.14806043,86855.0,86854.0,0.00104666]
[1745261821054,0.14806043,86855.0,86854.0,0.23131815]
[1745261821272,0.03430449,86855.0,86854.0,0.33052068]
[1745261821482,0.03430449,86855.0,86854.0,0.32821815]
[1745261821680,0.01476047,86855.0,86854.0,0.32821815]
[1745261821955,0.01276047,86855.0,86854.0,0.32721815]
[1745261822164,0.002,86855.0,86854.0,0.3388598]
[1745261822409,0.0008442,86867.0,86866.0,0.27863967]
[1745261823752,0.0018442,86867.0,86866.0,0.27863967]
[1745261823963,0.0038442,86867.0,86866.0,0.27963967]
[1745261824461,0.0018442,86867.0,86866.0,0.32713967]
[1745261824817,0.0028442,86867.0,86866.0,0.32713967]
[1745261825428,0.0038442,86867.0,86866.0,0.32713967]
[1745261826833,0.0028442,86867.0,86866.0,0.32713967]
[1745261827172,0.0008442,86867.0,86866.0,0.32813967]
[1745261828542,0.0008442,86867.0,86866.0,0.32913967]
[1745261831266,0.0008442,86867.0,86866.0,0.002]
[1745261831267,0.23108122,86867.0,86866.0,0.002]
[1745261831472,0.48483716,86867.0,86866.0,0.002]
[1745261831673,0.50152574,86867.0,86866.0,0.002]
[1745261832235,0.01151304,86858.0,86854.0,4.666e-05]
[1745261832457,0.23026883,86855.0,86854.0,4.666e-05]
[1745261832666,0.51402477,86855.0,86854.0,4.666e-05]
[1745261832866,0.53064582,86855.0,86854.0,4.666e-05]
[1745261833332,0.53064582,86855.0,86854.0,0.23031815]
[1745261833333,0.30037699,86855.0,86854.0,0.23031815]
[1745261833461,0.13037699,86855.0,86854.0,0.23031815]
[1745261834083,0.13137699,86855.0,86854.0,0.23031815]
[1745261834730,0.01762105,86855.0,86854.0,0.23031815]
[1745261845279,0.24788988,86855.0,86854.0,4.666e-05]
[1745261848036,0.36164582,86855.0,86854.0,4.666e-05]
[1745261854009,0.13137699,86855.0,86854.0,4.666e-05]
[1745261854399,0.13137699,86855.0,86854.0,0.23031815]
[1745261854817,0.01762105,86855.0,86854.0,0.23031815]
[1745261855019,0.01762105,86855.0,86854.0,0.27792066]
[1745261855220,0.001,86855.0,86854.0,0.32181815]
[1745261858046,0.0008442,86867.0,86866.0,0.23023967]
[1745261858682,0.01235605,86867.0,86862.0,0.01151251]
[1745261858833,0.0008442,86867.0,86866.0,0.23023967]
[1745261859046,0.01728031,86867.0,86866.0,0.23023967]
[1745261859246,0.01828031,86867.0,86866.0,0.23023967]
[1745261862282,0.02979216,86867.0,86865.0,0.23024221]
[1745261862490,0.01828031,86867.0,86865.0,0.23024007]
[1745261863116,0.01828031,86867.0,86866.0,0.23023967]
[1745261863550,0.01728031,86867.0,86866.0,0.23023967]
[1745261863972,0.01828031,86867.0,86866.0,0.23023967]
[1745261864404,0.01728031,86867.0,86866.0,0.23023967]
[1745261864580,0.01828031,86867.0,86866.0,0.23023967]
[1745261867779,0.02902309,86867.0,86866.0,0.23023967]
[1745261869532,0.01828031,86867.0,86866.0,0.23023967]
[1745261874334,0.01828031,86867.0,86865.0,0.23024007]
[1745261874545,0.01828031,86867.0,86866.0,0.23023967]
[1745261875086,0.1435481,86867.0,86828.0,0.05]
[1745261875299,0.23026881,86856.0,86854.0,4.666e-05]
[1745261875573,0.34402477,86855.0,86854.0,4.666e-05]
[1745261875777,0.13033488,86855.0,86854.0,4.666e-05]
[1745261875951,0.14108844,86855.0,86854.0,4.666e-05]
[1745261876601,0.37135727,86855.0,86854.0,4.666e-05]
[1745261877077,0.37235727,86855.0,86854.0,4.666e-05]
[1745261877272,0.37235727,86855.0,86854.0,0.00104666]
[1745261877476,0.37235727,86855.0,86854.0,4.666e-05]
[1745261882784,0.85235727,86855.0,86854.0,4.666e-05]
[1745261895685,0.87386206,86855.0,86854.0,4.666e-05]
[1745261896086,0.87286206,86855.0,86854.0,4.666e-05]
[1745261896332,0.87386206,86855.0,86854.0,4.666e-05]
[1745261896488,0.87486206,86855.0,86854.0,4.666e-05]
[1745261896906,0.87586206,86855.0,86854.0,4.666e-05]
[1745261898368,0.87486206,86855.0,86854.0,4.666e-05]
[1745261898690,0.87586206,86855.0,86854.0,0.00104666]
[1745261899925,1.29176206,86855.0,86854.0,0.00104666]
[1745261902142,1.27025727,86855.0,86854.0,0.00104666]
[1745261903510,0.23034309,86827.0,86825.0,0.0004219]
[1745261903756,0.45014168,86826.0,86825.0,0.0004219]
[1745261904003,0.46089524,86826.0,86825.0,0.00046857]
[1745261904237,0.64711523,86826.0,86825.0,0.00046857]
[1745261904438,0.6586048,86826.0,86825.0,0.00046857]
[1745261905218,0.6586048,86826.0,86825.0,0.00146857]
[1745261906922,0.64785124,86826.0,86825.0,0.00146857]
[1745261915179,0.40601593,86826.0,86825.0,0.00146857]
[1745261915419,0.40593593,86826.0,86825.0,0.27791697]
[1745261917301,0.12217999,86826.0,86825.0,0.27791697]
[1745261917562,0.01075356,86836.0,86830.0,0.24185148]
[1745261917679,0.35175748,86834.0,86831.0,0.01151662]
[1745261917883,0.11375594,86833.0,86832.0,0.23032721]
[1745261918277,0.12375594,86833.0,86832.0,0.23032721]
[1745261918945,0.12375594,86833.0,86824.0,0.0479]
[1745261918946,0.01151675,86830.0,86824.0,0.0479]
[1745261919179,0.01151702,86828.0,86825.0,0.00046857]
[1745261919353,0.23034574,86826.0,86825.0,0.00046857]
[1745261919567,0.34410168,86826.0,86825.0,0.00046857]
[1745261920296,0.34410168,86826.0,86825.0,0.00146857]
[1745261920514,0.11375594,86826.0,86825.0,0.23181697]
[1745261920715,0.11375594,86826.0,86825.0,0.23081697]
[1745261920970,0.11475594,86826.0,86825.0,0.23181697]
[1745261925204,0.13067493,86826.0,86825.0,0.23181697]
[1745261927431,0.36102067,86826.0,86825.0,0.00146857]
[1745261928613,0.13067493,86826.0,86825.0,0.00146857]
[1745261929929,0.13067493,86826.0,86798.0,0.0004221]
[1745261929930,0.01454085,86824.0,86798.0,0.0004221]
[1745261930178,0.6986903,86808.0,86798.0,0.0004221]
[1745261930419,0.85414945,86808.0,86807.0,0.03169739]
[1745261930637,0.87002237,86808.0,86807.0,0.03169739]
[1745261931071,0.88077593,86808.0,86807.0,0.03169739]
[1745261931722,0.88077593,86808.0,86807.0,0.03269739]
[1745261932365,0.90224787,86808.0,86807.0,0.03169739]
[1745261932564,0.90324787,86808.0,86807.0,0.03169739]
[1745261934128,0.91200927,86808.0,86807.0,0.03169739]
[1745261937129,1.02576132,86808.0,86807.0,0.03169739]
[1745261937334,0.96180927,86808.0,86807.0,0.03169739]
[1745261937754,0.96080927,86808.0,86807.0,0.03169739]
[1745261938103,0.97635012,86808.0,86807.0,0.03169739]
[1745261938315,0.97735012,86808.0,86807.0,0.03169739]
[1745261938520,0.97635012,86808.0,86807.0,0.03169739]
[1745261939048,0.97735012,86808.0,86807.0,0.03169739]
[1745261939256,1.09010217,86808.0,86807.0,0.03169739]
[1745261939401,1.08910217,86808.0,86807.0,0.03169739]
[1745261939796,1.09010217,86808.0,86807.0,0.03169739]
[1745261940009,0.97635012,86808.0,86807.0,0.03169739]
[1745261940212,1.09945012,86808.0,86807.0,0.03169739]
[1745261940411,0.98135012,86808.0,86807.0,0.03169739]
[1745261947835,0.93155012,86808.0,86807.0,0.03169739]
[1745261948063,1.02284927,86808.0,86807.0,0.03169739]
[1745261948266,1.00137733,86808.0,86807.0,0.03169739]
[1745261949747,1.41727733,86808.0,86807.0,0.03169739]
[1745261950862,1.31143733,86808.0,86807.0,0.03169739]
[1745261951082,1.41727733,86808.0,86807.0,0.03169739]
[1745261951262,1.53102938,86808.0,86807.0,0.03169739]
[1745261951466,1.62612938,86808.0,86807.0,0.03169739]
[1745261951673,1.64067023,86808.0,86807.0,0.03169739]
[1745261952496,1.66210808,86808.0,86807.0,0.03169739]
[1745261953311,1.61670808,86808.0,86807.0,0.03169739]
[1745261953824,1.50295603,86808.0,86807.0,0.03169739]
[1745261956221,1.57203603,86808.0,86807.0,0.03169739]
[1745261956459,1.50295603,86808.0,86807.0,0.03169739]
[1745261963451,1.53517649,86808.0,86807.0,0.03169739]
[1745261964781,1.51373864,86808.0,86807.0,0.03169739]
[1745261965710,1.46403864,86808.0,86807.0,0.03169739]
[1745261966450,1.53311864,86808.0,86807.0,0.03169739]
[1745261966680,1.46403864,86808.0,86807.0,0.03169739]
[1745261967101,1.57779069,86808.0,86807.0,0.03169739]
[1745261968573,1.48557336,86808.0,86807.0,0.03169739]
[1745261969000,1.06967336,86808.0,86807.0,0.03169739]
[1745261974240,0.96383336,86808.0,86807.0,0.03169739]
[1745261974440,1.06959336,86808.0,86807.0,0.03169739]
[1745261984721,1.06959336,86808.0,86798.0,0.0004221]
[1745261984722,0.35454085,86799.0,86798.0,0.0004221]
[1745261984926,0.35454085,86797.0,86796.0,0.0004221]
[1745261985131,0.58497152,86794.0,86793.0,1e-08]
[1745261985342,0.58497152,86794.0,86782.0,0.0004221]
[1745261985343,0.57045988,86783.0,86782.0,0.0004221]
[1745261985559,0.99219628,86783.0,86782.0,0.0004221]
[1745261985780,1.02897146,86783.0,86782.0,0.0004221]
[1745261985996,1.02897146,86783.0,86782.0,0.0008852]
[1745261986610,1.04027539,86783.0,86782.0,0.0008852]
[1745261986810,1.05102895,86783.0,86782.0,0.0008852]
[1745261987481,1.01880849,86783.0,86782.0,0.0008852]
[1745261987701,0.67880849,86783.0,86782.0,0.0466852]
[1745261987909,1.01980849,86783.0,86782.0,0.0466852]
[1745261988770,1.02831875,86783.0,86782.0,0.0466852]
[1745261989016,1.00678403,86783.0,86782.0,0.0466852]
[1745261991015,1.00678403,86783.0,86782.0,0.0465852]
[1745261994937,1.00678403,86783.0,86782.0,0.0007852]
[1745261999150,1.02132488,86783.0,86782.0,0.0007852]
[1745261999472,1.04280051,86783.0,86782.0,0.0007852]
[1745262000289,0.5704705,86779.0,86778.0,1e-08]
[1745262000474,0.5704705,86779.0,86772.0,0.0004221]
[1745262000475,0.58502729,86773.0,86772.0,0.0004221]
[1745262000650,0.89099582,86773.0,86772.0,0.0004221]
[1745262000853,0.91247145,86773.0,86772.0,0.00088586]
[1745262001399,0.92322501,86773.0,86772.0,0.00088586]
[1745262002389,0.92322501,86773.0,86755.0,0.0130279]
[1745262002390,0.5705316,86756.0,86755.0,0.0130279]
[1745262002686,0.97424317,86756.0,86755.0,0.0130279]
[1745262002955,0.98878402,86756.0,86755.0,0.0130279]
[1745262003205,0.98499673,86756.0,86755.0,0.0130279]
[1745262003482,0.81850598,86756.0,86750.0,0.501]
[1745262003732,0.01153096,86723.0,86712.0,0.0476]
[1745262003972,0.57062464,86721.0,86712.0,0.0476]
[1745262004221,0.74062464,86721.0,86712.0,0.0476]
[1745262004453,0.77285383,86721.0,86712.0,0.0476]
[1745262004689,1.00036182,86721.0,86712.0,0.0476]
[1745262004940,0.89511218,86721.0,86712.0,0.0476]
[1745262005170,0.66494214,86721.0,86712.0,0.0476]
[1745262005654,0.65501734,86721.0,86717.0,0.23063475]
[1745262005884,0.64426378,86721.0,86714.0,0.24217344]
[1745262006119,0.64426378,86721.0,86714.0,0.23064128]
[1745262006345,0.11421054,86721.0,86720.0,0.0014221]
[1745262006555,0.11721054,86721.0,86720.0,0.0014221]
[1745262007009,0.27721054,86721.0,86720.0,0.0014221]
[1745262007230,0.61521054,86721.0,86720.0,0.0014221]
[1745262007457,0.72119731,86721.0,86720.0,0.0014221]
[1745262007681,0.72219731,86721.0,86720.0,0.0014221]
[1745262008316,0.72119731,86721.0,86720.0,0.0014221]
[1745262008544,0.62975139,86721.0,86720.0,0.0014221]
[1745262008756,0.61521054,86721.0,86720.0,0.0024221]
[1745262008962,0.61421054,86721.0,86720.0,0.0024221]
[1745262009400,0.61621054,86721.0,86720.0,0.0024221]
[1745262009612,0.63075139,86721.0,86720.0,0.0014221]
[1745262010038,0.63275139,86721.0,86720.0,0.0014221]
[1745262010243,0.58518943,86712.0,86711.0,0.004]
[1745262010447,0.85894537,86712.0,86711.0,0.004]
[1745262012135,0.85994537,86712.0,86711.0,0.004]
[1745262012565,0.86294537,86712.0,86711.0,0.004]
[1745262013788,0.84840452,86712.0,86711.0,0.004]
[1745262014372,0.27775594,86712.0,86711.0,0.004]
[1745262014572,0.27775594,86712.0,86711.0,0.23465124]
[1745262014961,0.004,86712.0,86711.0,0.23565124]
[1745262015176,0.01075356,86713.0,86711.0,0.23565124]
[1745262015398,0.01075356,86713.0,86712.0,0.0023062]
[1745262015632,0.00145461,86721.0,86720.0,0.2306273]
[1745262018713,0.00145461,86721.0,86720.0,0.2336273]
[1745262019937,0.11521055,86721.0,86720.0,0.003]
[1745262020300,0.12941087,86721.0,86720.0,0.003]
[1745262020915,0.11521055,86721.0,86720.0,0.003]
[1745262023326,0.00145461,86721.0,86720.0,0.0519]
[1745262023538,0.15892,86746.0,86745.0,0.23056083]
[1745262023747,0.27267594,86746.0,86745.0,0.27946083]
[1745262023925,0.12799947,86746.0,86745.0,0.27946083]
[1745262024168,0.12799947,86746.0,86745.0,0.30085734]
[1745262024392,0.0008444,86756.0,86755.0,0.23053426]
[1745262024608,0.11460034,86756.0,86755.0,0.23053426]
[1745262024809,0.12885939,86756.0,86755.0,0.23053426]
[1745262025009,0.11460034,86756.0,86755.0,0.25193077]
[1745262025341,0.27352034,86756.0,86755.0,0.02139651]
[1745262025547,0.01152764,86748.0,86745.0,0.0489]
[1745262025748,0.01152804,86745.0,86738.0,0.24210693]
[1745262025947,0.12818524,86744.0,86739.0,0.01152883]
[1745262026184,0.0115287,86740.0,86737.0,0.0489]
[1745262026517,0.23057944,86738.0,86737.0,0.0489]
[1745262026640,0.34433538,86738.0,86737.0,0.0489]
[1745262026899,0.12817593,86738.0,86737.0,0.0489]